bitfinex-derivatives/quotes_BTCF0:USTF0_20251217
["timestamp","ask_amount","ask_price","bid_price","bid_amount"]
[1765984580975,0.2761819,90210.0,90201.0,0.0110898]
[1765984581174,0.00011608,90211.0,90201.0,0.0110898]
[1765984581373,0.0110887,90210.0,90184.0,0.05653282]
[1765984581666,0.00011608,90211.0,90210.0,0.0110887]
[1765984581868,0.0001662,90218.0,90215.0,0.011088]
[1765984582266,0.0110864,90229.0,90203.0,0.0110896]
[1765984582474,0.27685835,90220.0,90217.0,0.0110878]
[1765984582667,0.21628,90235.0,90193.0,0.3577208]
[1765984582668,0.0110877,90219.0,90193.0,0.34663]
[1765984582976,0.27685835,90210.0,90193.0,0.34663]
[1765984583379,0.27685835,90210.0,90208.0,0.0110889]
[1765984583566,0.0001663,90211.0,90193.0,0.34663]
[1765984584072,0.27685835,90240.0,90201.0,0.0665391]
[1765984584275,0.011084,90249.0,90237.0,0.0110853]
[1765984584472,0.011084,90249.0,90215.0,0.0110881]
[1765984584775,0.27685835,90240.0,90212.0,0.34663]
[1765984584973,0.729,90250.0,90212.0,0.34663]
[1765984584974,0.27685835,90230.0,90228.0,0.0110865]
[1765984585170,0.0001663,90235.0,90228.0,0.0110865]
[1765984585573,0.3608,90230.0,90228.0,0.0110865]
[1765984585765,0.3608,90240.0,90222.0,0.3608]
[1765984586073,0.63765835,90240.0,90233.0,0.0110858]
[1765984586375,0.001,90235.0,90217.0,0.0001663]
[1765984586577,0.3608,90229.0,90217.0,0.0001663]
[1765984586777,0.3608,90229.0,90227.0,0.0110866]
[1765984586972,0.3608,90229.0,90218.0,0.0110877]
[1765984587169,0.0110871,90223.0,90222.0,0.001]
[1765984587370,0.3608,90221.0,90205.0,0.3608]
[1765984587677,0.0001663,90232.0,90205.0,0.3608]
[1765984587678,0.0001663,90232.0,90216.0,0.3608]
[1765984587878,0.0110865,90229.0,90216.0,0.3608]
[1765984588076,0.0110876,90220.0,90216.0,0.3608]
[1765984588279,0.0110889,90209.0,90193.0,0.34663]
[1765984588482,0.27702465,90210.0,90201.0,0.3608]
[1765984588779,0.27702465,90210.0,90202.0,0.0110897]
[1765984588980,0.27702465,90210.0,90201.0,0.3608]
[1765984588981,0.0110894,90205.0,90201.0,0.3608]
[1765984589274,0.27702465,90210.0,90202.0,0.0110897]
[1765984589475,0.0001663,90210.0,90201.0,0.3608]
[1765984589779,0.0001663,90210.0,90208.0,0.011089]
[1765984589970,0.0110883,90214.0,90201.0,0.3608]
[1765984590172,0.27685835,90220.0,90213.0,0.3608]
[1765984590483,0.27685835,90230.0,90213.0,0.3608]
[1765984590670,0.27685835,90230.0,90229.0,0.0110864]
[1765984590874,0.3608,90237.0,90221.0,0.0110874]
[1765984591070,0.0110873,90222.0,90220.0,0.0001663]
[1765984591377,0.0110873,90222.0,90213.0,0.3718883]
[1765984591378,0.3608,90221.0,90195.0,0.3608]
[1765984591580,0.0110884,90213.0,90205.0,0.3608]
[1765984591874,0.001,90210.0,90205.0,0.3608]
[1765984592078,0.3608,90206.0,90185.0,0.03740818]
[1765984592277,0.3608,90206.0,90184.0,0.3608]
[1765984592278,0.27685835,90195.0,90186.0,0.0001663]
[1765984592575,0.0110918,90185.0,90182.0,0.0110921]
[1765984592785,0.27685835,90196.0,90182.0,0.0110921]
[1765984592786,0.3608,90188.0,90182.0,0.0110921]
[1765984592964,0.3608,90188.0,90179.0,0.3608]
[1765984593173,0.3608,90198.0,90191.0,1e-06]
[1765984593482,0.0110903,90197.0,90192.0,0.011091]
[1765984593672,0.27685835,90202.0,90199.0,0.0110901]
[1765984593871,0.0112558,90205.0,90198.0,2e-07]
[1765984594067,0.0001663,90205.0,90198.0,2e-07]
[1765984594272,0.0001663,90205.0,90202.0,0.0110896]
[1765984594470,0.27785835,90210.0,90199.0,0.3608]
[1765984594471,0.0110889,90209.0,90199.0,0.3608]
[1765984594670,0.01109,90200.0,90198.0,2e-07]
[1765984595081,0.01109,90200.0,90196.0,0.0110904]
[1765984595082,0.01109,90200.0,90196.0,6e-07]
[1765984595277,0.3608,90206.0,90202.0,0.0110896]
[1765984595482,0.0110889,90209.0,90198.0,0.32516]
[1765984595782,0.0110885,90212.0,90207.0,0.3718891]
[1765984595977,0.0110889,90209.0,90207.0,0.3608]
[1765984596291,0.0110889,90209.0,90170.0,0.40600547]
[1765984596292,0.0110908,90194.0,90185.0,0.0001663]
[1765984596579,0.0110932,90174.0,90171.0,0.0110935]
[1765984596770,0.3608,90175.0,90174.0,0.0110932]
[1765984596972,0.3608,90175.0,90157.0,0.3608]
[1765984597380,0.3609663,90175.0,90160.0,0.0110948]
[1765984597573,0.08977801,90187.0,90174.0,0.3608]
[1765984597885,0.0110929,90177.0,90174.0,0.0110931]
[1765984598074,0.0110922,90183.0,90173.0,0.3608]
[1765984598273,0.3608,90182.0,90165.0,0.3608]
[1765984598474,0.40600547,90175.0,90165.0,0.3608]
[1765984598680,0.3608,90166.0,90164.0,0.0110943]
[1765984598874,0.0110936,90171.0,90170.0,0.0110937]
[1765984599184,0.3608,90174.0,90159.0,0.011095]
[1765984599385,0.3608,90174.0,90171.0,0.0110934]
[1765984599880,0.0001663,90179.0,90158.0,0.0110951]
[1765984599881,0.0001663,90179.0,90162.0,0.32516]
[1765984600179,0.0110944,90165.0,90162.0,0.3362546]
[1765984600371,0.3608,90163.0,90162.0,0.0110946]
[1765984600578,0.011095,90160.0,90139.0,0.3608]
[1765984600778,0.3608,90163.0,90160.0,0.0110948]
[1765984601082,0.3608,90163.0,90138.0,0.01331643]
[1765984601083,0.72844,90162.0,90138.0,0.00221883]
[1765984601285,0.72844,90162.0,90120.0,0.3608]
[1765984601286,0.3608,90140.0,90129.0,0.0110986]
[1765984601488,0.3608,90140.0,90115.0,0.00173384]
[1765984601489,0.3608,90132.0,90118.0,0.3608]
[1765984601694,0.0110967,90146.0,90142.0,0.0110971]
[1765984601884,0.3718958,90153.0,90149.0,0.0110962]
[1765984602183,0.3718958,90153.0,90139.0,0.3608]
[1765984602184,0.00011458,90152.0,90143.0,0.011097]
[1765984602385,0.01121048,90152.0,90142.0,0.00016639]
[1765984602591,0.0110968,90145.0,90142.0,0.00016639]
[1765984602785,0.0110968,90145.0,90130.0,1.5]
[1765984602786,0.3608,90143.0,90130.0,1.5]
[1765984603088,0.3608,90143.0,90127.0,0.011099]
[1765984603089,0.3608,90131.0,90127.0,0.011099]
[1765984603286,9.248e-05,90130.0,90127.0,0.011099]
[1765984603786,2.48e-06,90130.0,90127.0,0.011099]
[1765984603988,0.40600547,90150.0,90138.0,0.0110976]
[1765984604188,0.0110943,90165.0,90128.0,0.3608]
[1765984604189,0.0110937,90170.0,90150.0,0.011096]
[1765984604489,0.40600547,90170.0,90160.0,0.0110949]
[1765984604682,0.3608,90166.0,90149.0,0.3608]
[1765984604888,0.7394543,90165.0,90160.0,0.0110948]
[1765984605091,0.011094,90167.0,90153.0,0.00016639]
[1765984605282,0.0110942,90166.0,90157.0,0.3608]
[1765984605586,0.0110953,90157.0,90153.0,0.01126209]
[1765984605980,0.3608,90158.0,90156.0,0.0110953]
[1765984606177,0.3608,90158.0,90153.0,0.00016639]
[1765984606178,0.01125989,90172.0,90168.0,0.0110938]
[1765984606378,0.00016639,90172.0,90171.0,0.0110935]
[1765984606692,0.0110935,90171.0,90167.0,0.0110939]
[1765984607092,0.00016639,90172.0,90171.0,0.0110935]
[1765984607398,0.00016639,90172.0,90164.0,0.0110943]
[1765984607581,0.00016639,90172.0,90169.0,0.0110938]
[1765984607776,0.0110935,90171.0,90165.0,0.0110942]
[1765984607993,0.0110935,90171.0,90168.0,0.0110939]
[1765984608176,0.0110948,90162.0,90159.0,0.3608]
[1765984608377,0.0110954,90156.0,90154.0,0.0110956]
[1765984608583,0.011096,90152.0,90141.0,0.3608]
[1765984608781,0.3608,90156.0,90151.0,0.0110959]
[1765984608981,0.0110962,90150.0,90148.0,0.0110963]
[1765984609281,0.3608,90156.0,90131.0,0.0110984]
[1765984609487,0.011095,90159.0,90157.0,0.0110951]
[1765984609689,0.36096639,90167.0,90164.0,0.0110943]
[1765984609884,0.00016639,90167.0,90164.0,0.0110943]
[1765984610090,0.3608,90185.0,90166.0,0.0110941]
[1765984610091,0.0110924,90181.0,90166.0,0.0110941]
[1765984610386,0.011093,90177.0,90176.0,0.0110928]
[1765984610580,0.40600547,90180.0,90170.0,0.0110935]
[1765984610787,0.3608,90175.0,90166.0,0.0110941]
[1765984610979,0.0110949,90160.0,90159.0,0.011095]
[1765984611187,0.3608,90161.0,90158.0,0.0110951]
[1765984611693,0.3608,90178.0,90177.0,0.0110928]
[1765984611897,0.0110897,90203.0,90190.0,0.0110912]
[1765984611898,0.0110911,90192.0,90190.0,0.0110912]
[1765984612191,1.38728,90205.0,90191.0,0.3608]
[1765984612490,0.0110897,90202.0,90189.0,0.3608]
[1765984612693,1.74808,90205.0,90189.0,0.3608]
[1765984612694,0.08948613,90204.0,90189.0,0.3608]
[1765984612890,1.39853579,90205.0,90199.0,0.01109]
[1765984613083,0.0110901,90199.0,90195.0,0.0110905]
[1765984613506,0.00016639,90205.0,90189.0,0.3608]
[1765984613507,0.0110909,90193.0,90189.0,0.3608]
[1765984613799,0.40600547,90200.0,90189.0,0.3608]
[1765984614091,0.3608,90190.0,90186.0,0.00016639]
[1765984614284,0.3608,90190.0,90186.0,0.01125799]
[1765984615086,0.0110913,90189.0,90186.0,0.01125799]
[1765984615292,0.0110913,90189.0,90186.0,0.00016639]
[1765984615592,0.3608,90190.0,90155.0,0.0110954]
[1765984615593,0.0110924,90181.0,90155.0,0.0110954]
[1765984615783,0.0110924,90181.0,90147.0,0.3608]
[1765984615784,0.0110946,90162.0,90157.0,0.0110952]
[1765984615983,0.3608,90163.0,90159.0,0.0110949]
[1765984616184,0.3608,90163.0,90161.0,0.0110947]
[1765984616388,0.3608,90174.0,90157.0,0.3608]
[1765984616389,0.00016629,90171.0,90157.0,0.3608]
[1765984616593,0.011093,90176.0,90172.0,0.0110933]
[1765984616790,0.011093,90176.0,90175.0,0.011093]
[1765984616994,0.011093,90176.0,90172.0,0.0110934]
[1765984617488,0.011093,90176.0,90169.0,0.3608]
[1765984617694,0.00016629,90182.0,90180.0,0.0110923]
[1765984617993,0.40600547,90190.0,90179.0,0.3608]
[1765984617994,0.0110916,90187.0,90179.0,0.3608]
[1765984618180,0.0110911,90191.0,90190.0,0.0110912]
[1765984618382,0.3608,90191.0,90169.0,0.3608]
[1765984618585,0.3608,90191.0,90175.0,0.011093]
[1765984618586,0.3608,90183.0,90175.0,0.011093]
[1765984618784,0.0110935,90171.0,90168.0,0.33251]
[1765984618993,0.0110935,90171.0,90148.0,0.3608]
[1765984618994,0.3608,90169.0,90160.0,0.00016629]
[1765984619188,0.3718948,90161.0,90160.0,0.00016629]
[1765984619583,0.0110959,90153.0,90152.0,0.0110958]
[1765984620087,0.0110943,90166.0,90164.0,0.0110943]
[1765984620283,0.0120938,90169.0,90168.0,0.33251]
[1765984620480,0.00016629,90179.0,90174.0,0.0110931]
[1765984620790,0.3608,90191.0,90177.0,0.3608]
[1765984620994,0.0110927,90178.0,90177.0,0.3718927]
[1765984621181,0.0110927,90178.0,90177.0,0.3608]
[1765984621382,0.3608,90191.0,90177.0,0.3608]
[1765984621583,0.0110909,90193.0,90187.0,0.3608]
[1765984621584,0.0110914,90189.0,90187.0,0.3608]
[1765984621988,0.0110924,90180.0,90179.0,0.00016629]
[1765984622197,0.0110924,90180.0,90167.0,0.3608]
[1765984622198,0.0110938,90169.0,90167.0,0.3608]
[1765984622494,0.0110938,90169.0,90141.0,0.0110972]
[1765984622495,0.0110951,90158.0,90145.0,0.02821094]
[1765984622789,0.3608,90157.0,90143.0,0.3608]
[1765984622998,0.0110966,90146.0,90143.0,0.3608]
[1765984623383,0.0110966,90146.0,90137.0,0.02821094]
[1765984623593,0.3608,90140.0,90137.0,0.0110977]
[1765984623792,0.0110961,90151.0,90139.0,0.7216]
[1765984623995,0.3718943,90166.0,90139.0,0.7216]
[1765984623996,0.3608,90166.0,90147.0,0.3608]
[1765984624190,0.0110948,90161.0,90158.0,0.0110951]
[1765984624495,0.0110957,90154.0,90151.0,0.3608]
[1765984624705,0.0110942,90166.0,90151.0,0.3608]
[1765984624999,0.40600547,90180.0,90165.0,0.3608]
[1765984625197,0.0125479,90200.0,90165.0,0.3608]
[1765984625198,0.41855337,90200.0,90174.0,0.33251]
[1765984625493,0.0110916,90187.0,90184.0,0.3608]
[1765984625695,0.0110916,90187.0,90184.0,0.3718919]
[1765984625890,0.011091,90192.0,90189.0,0.0110913]
[1765984626086,0.40617186,90200.0,90184.0,0.3608]
[1765984626288,0.40617186,90200.0,90184.0,0.3718919]
[1765984626485,0.00016639,90200.0,90184.0,0.3718919]
[1765984626689,0.0110918,90185.0,90184.0,0.3608]
[1765984626882,0.0110918,90186.0,90184.0,0.3608]
[1765984627090,0.0110922,90182.0,90181.0,0.00016639]
[1765984627301,0.40617186,90200.0,90181.0,0.00016639]
[1765984627594,0.0110902,90199.0,90184.0,0.0110919]
[1765984627789,0.0110902,90199.0,90181.0,0.00016639]
[1765984628094,0.0110903,90198.0,90182.0,0.0110921]
[1765984628595,0.0110919,90185.0,90181.0,0.00016639]
[1765984628896,0.0110903,90198.0,90181.0,0.01125869]
[1765984629199,0.40717186,90200.0,90181.0,0.00016639]
[1765984629399,0.0110909,90193.0,90190.0,0.0110911]
[1765984629805,0.40617186,90200.0,90186.0,0.3718916]
[1765984630188,0.40617186,90200.0,90186.0,0.3608]
[1765984630387,0.40617186,90200.0,90191.0,0.0110911]
[1765984630388,0.0110909,90193.0,90191.0,0.0110911]
[1765984630590,7e-07,90194.0,90191.0,0.011091]
[1765984630791,0.00016639,90200.0,90193.0,0.3608]
[1765984631004,0.01252306,90218.0,90193.0,0.3608]
[1765984631005,0.05934304,90225.0,90198.0,0.3608]
[1765984631186,0.0110885,90213.0,90211.0,0.3608]
[1765984631498,0.0110885,90213.0,90212.0,0.0110885]
[1765984631701,0.0110885,90213.0,90211.0,0.3718886]
[1765984631902,0.01125379,90221.0,90220.0,0.0110873]
[1765984632096,3.79e-06,90221.0,90220.0,0.3608]
[1765984632904,3.04e-06,90240.0,90237.0,0.0110853]
[1765984633096,4.27e-06,90262.0,90249.0,0.0110838]
[1765984633293,4.27e-06,90262.0,90233.0,0.0110858]
[1765984633294,0.09990318,90277.0,90261.0,0.3608]
[1765984633497,0.0110806,90276.0,90274.0,0.3608]
[1765984634201,0.0110822,90263.0,90250.0,0.69922]
[1765984634593,0.0110819,90267.0,90258.0,0.3718828]
[1765984634789,0.011082,90265.0,90258.0,0.3608]
[1765984634991,0.011082,90265.0,90259.0,0.0110827]
[1765984635195,0.011082,90265.0,90258.0,0.3608]
[1765984635507,0.0110825,90262.0,90257.0,0.0110829]
[1765984635690,0.011082,90265.0,90258.0,0.001]
[1765984635894,0.011082,90265.0,90259.0,0.0110827]
[1765984636192,0.0110833,90254.0,90253.0,0.00016619]
[1765984636397,0.3608,90260.0,90236.0,0.3608]
[1765984636597,0.00016619,90271.0,90231.0,0.33842]
[1765984636598,0.40600547,90270.0,90259.0,0.3608]
[1765984636904,0.09990318,90286.0,90269.0,0.3608]
[1765984637204,0.46070318,90290.0,90277.0,0.3608]
[1765984637399,0.46070318,90290.0,90277.0,0.3718805]
[1765984637400,0.01108,90282.0,90277.0,0.3718805]
[1765984637600,4e-07,90279.0,90277.0,0.3608]
[1765984637805,0.0110808,90279.0,90277.0,0.3608]
[1765984638192,0.0110808,90275.0,90274.0,0.00016619]
[1765984638397,0.0110825,90261.0,90260.0,0.3608]
[1765984638595,0.011082,90265.0,90260.0,0.3608]
[1765984638792,0.0010004,90279.0,90260.0,0.3608]
[1765984639000,0.0110818,90267.0,90260.0,0.3608]
[1765984639195,0.0010004,90279.0,90264.0,0.011082]
[1765984639397,0.09990318,90295.0,90273.0,0.7216]
[1765984639597,0.0110784,90294.0,90293.0,0.3608]
[1765984640094,0.0110784,90295.0,90293.0,0.3608]
[1765984640501,0.00016619,90303.0,90293.0,0.3608]
[1765984640706,0.0110768,90308.0,90303.0,0.0110773]
[1765984640902,0.44678318,90312.0,90302.0,0.3608]
[1765984640903,0.13986445,90321.0,90307.0,0.3608]
[1765984641111,0.08723152,90325.0,90320.0,0.3608]
[1765984641293,0.0110737,90333.0,90320.0,0.57194968]
[1765984641499,0.25974827,90347.0,90330.0,0.3608]
[1765984641500,0.40600547,90340.0,90330.0,0.3608]
[1765984641810,0.40600547,90340.0,90300.0,0.40600547]
[1765984641811,0.0110757,90317.0,90310.0,0.3608]
[1765984642000,0.0001661,90323.0,90315.0,0.0110758]
[1765984642200,0.0001661,90323.0,90319.0,0.0110754]
[1765984642404,0.0001661,90323.0,90318.0,0.3608]
[1765984642405,0.0110698,90365.0,90326.0,0.33842]
[1765984642709,0.0110701,90362.0,90357.0,0.3608]
[1765984642894,0.0110701,90362.0,90359.0,0.3608]
[1765984643101,0.0110707,90357.0,90349.0,1.08644]
[1765984643303,0.00010874,90362.0,90349.0,0.3608]
[1765984643519,0.00010874,90362.0,90344.0,0.000166]
[1765984643698,0.00010874,90362.0,90355.0,0.3608]
[1765984644003,0.01117884,90362.0,90355.0,0.3608]
[1765984644205,0.0110706,90358.0,90355.0,0.3608]
[1765984644405,0.0110716,90350.0,90346.0,0.3608]
[1765984644608,0.3608,90361.0,90346.0,0.3608]
[1765984644806,0.0110719,90348.0,90346.0,0.3608]
[1765984645112,0.40600547,90360.0,90336.0,0.3608]
[1765984645313,0.011073,90339.0,90336.0,0.3608]
[1765984645615,0.011071,90355.0,90341.0,0.0110726]
[1765984645801,0.00010874,90362.0,90329.0,2.42892547]
[1765984645802,0.00010874,90362.0,90354.0,0.3608]
[1765984646002,0.00010874,90362.0,90329.0,1.5]
[1765984646003,0.3608,90355.0,90329.0,1.5]
[1765984646200,0.0110736,90334.0,90333.0,0.000166]
[1765984646407,0.3608,90336.0,90305.0,0.3608]
[1765984646602,0.3608,90336.0,90318.0,0.0110754]
[1765984646603,0.0110745,90327.0,90318.0,0.0110754]
[1765984646804,0.3608,90328.0,90307.0,1.5]
[1765984647000,0.0110737,90333.0,90323.0,0.0110748]
[1765984647203,0.0110737,90333.0,90316.0,0.3608]
[1765984647204,0.000166,90343.0,90329.0,0.3608]
[1765984647398,0.0110719,90348.0,90340.0,0.3608]
[1765984647608,0.40600547,90360.0,90340.0,0.3608]
[1765984647609,0.74789547,90360.0,90340.0,0.3608]
[1765984647914,0.0110732,90337.0,90336.0,0.001]
[1765984648211,0.0110738,90332.0,90328.0,0.3608]
[1765984648414,0.0110743,90328.0,90327.0,0.360966]
[1765984648619,0.000166,90339.0,90327.0,0.360966]
[1765984648806,0.000166,90339.0,90328.0,0.0110743]
[1765984649007,0.0110742,90329.0,90327.0,0.360966]
[1765984649306,0.0110735,90334.0,90330.0,0.0110739]
[1765984649507,0.000166,90339.0,90327.0,0.3720403]
[1765984649713,0.74889547,90360.0,90335.0,0.3608]
[1765984650018,0.74889547,90360.0,90327.0,0.360966]
[1765984650019,0.001,90360.0,90352.0,0.3608]
[1765984650321,0.0110718,90356.0,90352.0,0.3608]
[1765984650503,9e-07,90356.0,90337.0,0.0110731]
[1765984650708,9e-07,90356.0,90337.0,0.0112391]
[1765984650709,0.3608,90342.0,90337.0,0.0112391]
[1765984650908,0.0110727,90341.0,90337.0,0.000166]
[1765984651121,0.0110727,90341.0,90337.0,0.0112391]
[1765984651305,0.00010964,90356.0,90346.0,0.011072]
[1765984651306,0.3608,90349.0,90346.0,0.011072]
[1765984651505,0.00010964,90356.0,90347.0,0.3608]
[1765984651906,0.00010874,90356.0,90354.0,0.011071]
[1765984652107,0.40600547,90370.0,90356.0,0.0110708]
[1765984652310,0.3608,90357.0,90342.0,0.0110725]
[1765984652512,0.3608,90349.0,90338.0,0.3608]
[1765984652714,0.3608,90349.0,90338.0,0.371873]
[1765984652914,0.0110735,90335.0,90332.0,0.0110737]
[1765984653121,0.3608,90349.0,90334.0,0.000166]
[1765984653326,0.3608,90349.0,90305.0,0.371877]
[1765984653327,0.0110745,90327.0,90305.0,0.371877]
[1765984653614,0.3608,90339.0,90321.0,0.3608]
[1765984653815,0.0110749,90323.0,90321.0,0.3608]
[1765984654211,0.0110749,90323.0,90305.0,0.3608]
[1765984654212,0.0110761,90313.0,90305.0,0.3608]
[1765984654412,0.0001661,90318.0,90310.0,0.0110764]
[1765984654604,2.4e-06,90318.0,90305.0,0.3608]
[1765984654808,2.4e-06,90318.0,90311.0,0.0110763]
[1765984655008,2.4e-06,90318.0,90305.0,0.3608]
[1765984655512,2.4e-06,90318.0,90315.0,0.0110757]
[1765984656419,0.0110756,90317.0,90311.0,0.0110762]
[1765984656616,2.4e-06,90318.0,90305.0,0.3648]
[1765984656818,2.4e-06,90318.0,90317.0,0.0110756]
[1765984657121,0.0110741,90330.0,90324.0,0.0110747]
[1765984657317,0.3608,90336.0,90329.0,0.0110741]
[1765984657523,0.0110734,90335.0,90322.0,0.3608]
[1765984657820,0.3718719,90347.0,90334.0,0.3608]
[1765984658122,0.3718719,90347.0,90346.0,0.011072]
[1765984658419,0.3608,90347.0,90346.0,0.011072]
[1765984658716,0.3608,90355.0,90343.0,0.3608]
[1765984658921,0.3608,90346.0,90331.0,0.0001661]
[1765984659118,0.3608,90338.0,90337.0,0.0110732]
[1765984659517,0.0110732,90337.0,90335.0,0.0110733]
[1765984659817,0.0110736,90334.0,90331.0,0.0001661]
[1765984660019,0.3608,90337.0,90316.0,0.0110756]
[1765984660218,0.011075,90322.0,90318.0,0.0110754]
[1765984660418,0.3608,90335.0,90333.0,0.0110735]
[1765984660813,0.4,90335.0,90321.0,0.3608]
[1765984661014,0.0110749,90323.0,90319.0,0.0001661]
[1765984661323,0.3608,90326.0,90319.0,0.0001661]
[1765984661509,0.0110752,90320.0,90319.0,0.0001661]
[1765984661715,0.0110752,90320.0,90304.0,0.3608]
[1765984662023,0.3608,90316.0,90309.0,0.0110765]
[1765984662222,0.0110738,90332.0,90310.0,0.0110765]
[1765984662223,0.3608,90311.0,90310.0,0.0110765]
[1765984662528,0.3608,90330.0,90329.0,0.0110741]
[1765984663115,0.0110734,90336.0,90335.0,0.0110733]
[1765984663327,0.0110729,90339.0,90335.0,0.0110733]
[1765984663524,0.3718721,90346.0,90335.0,0.0110733]
[1765984663715,0.0110727,90341.0,90335.0,0.0110733]
[1765984663914,0.3608,90346.0,90335.0,0.0110733]
[1765984664112,0.0110727,90341.0,90335.0,0.0110733]
[1765984664317,0.011075,90323.0,90320.0,0.0112413]
[1765984664518,0.0110751,90321.0,90320.0,0.0001661]
[1765984664715,0.3608,90321.0,90313.0,0.011076]
[1765984664914,0.011076,90315.0,90304.0,0.3608]
[1765984665120,0.011076,90315.0,90305.0,0.04615303]
[1765984665317,0.0110757,90316.0,90306.0,0.03507603]
[1765984665517,0.0110757,90316.0,90307.0,0.03507603]
[1765984665819,0.0110766,90309.0,90308.0,0.03507603]
[1765984666431,0.3718763,90312.0,90308.0,0.03507603]
[1765984666625,0.3718763,90312.0,90309.0,0.03507603]
[1765984666826,0.3718763,90312.0,90310.0,0.03507603]
[1765984667029,0.3718763,90312.0,90311.0,0.03507603]
[1765984667231,0.011077,90306.0,90305.0,0.02821094]
[1765984667418,0.0110773,90305.0,90304.0,0.02821094]
[1765984667618,0.0110773,90305.0,90302.0,0.02837704]
[1765984667822,0.0110773,90303.0,90302.0,0.0001661]
[1765984668232,0.0110773,90303.0,90302.0,2.04e-06]
[1765984668432,0.0110778,90299.0,90298.0,0.0022149]
[1765984668738,9e-07,90274.0,90273.0,0.07514247]
[1765984669029,0.0110773,90304.0,90286.0,0.0110793]
[1765984669231,0.0001661,90304.0,90296.0,0.7216]
[1765984669429,0.0110781,90297.0,90296.0,0.7216]
[1765984669630,0.0001661,90304.0,90296.0,0.7216]
[1765984669940,9.588e-05,90297.0,90296.0,0.7326782]
[1765984670322,9.588e-05,90297.0,90296.0,0.7216]
[1765984670527,0.0110778,90299.0,90296.0,0.7216]
[1765984670726,0.0110793,90288.0,90286.0,0.0001661]
[1765984670928,0.3608,90287.0,90286.0,0.0001661]
[1765984671531,0.3609661,90304.0,90302.0,0.0110773]
[1765984671727,0.0001661,90304.0,90296.0,0.003]
[1765984671928,0.0110779,90298.0,90297.0,0.0110781]
[1765984672238,0.3608,90303.0,90286.0,0.0001661]
[1765984672430,0.3608,90303.0,90276.0,0.3608]
[1765984672431,0.01108,90282.0,90280.0,0.0110801]
[1765984672737,0.0110804,90279.0,90276.0,0.3608]
[1765984672934,0.0110796,90285.0,90276.0,0.3608]
[1765984673128,0.0110802,90280.0,90278.0,0.0110803]
[1765984673322,0.0110805,90278.0,90277.0,0.0110805]
[1765984673529,0.3608,90283.0,90276.0,0.3608]
[1765984673728,0.3608,90283.0,90276.0,0.3718805]
[1765984673931,0.0110805,90278.0,90276.0,0.3658]
[1765984674126,0.3608,90283.0,90277.0,0.0110805]
[1765984674325,0.09820574,90296.0,90291.0,0.0110788]
[1765984674326,0.3608,90292.0,90291.0,0.0110788]
[1765984674531,0.0110789,90291.0,90288.0,0.0110791]
[1765984674731,0.27605765,90300.0,90285.0,0.3608]
[1765984674937,0.27605765,90310.0,90303.0,0.0110773]
[1765984675132,0.0110763,90311.0,90303.0,0.0110773]
[1765984675332,0.3608,90312.0,90303.0,0.0110773]
[1765984675726,0.3608,90310.0,90303.0,0.3718773]
[1765984675936,0.3608,90319.0,90303.0,0.3718773]
[1765984676735,0.09030617,90324.0,90303.0,0.3608]
[1765984677039,0.27605765,90330.0,90313.0,0.3608]
[1765984677238,0.27605765,90330.0,90324.0,0.0110746]
[1765984677440,0.3608,90331.0,90320.0,0.0110752]
[1765984677639,0.3608,90331.0,90316.0,0.0001661]
[1765984677833,0.0110744,90327.0,90316.0,0.0001661]
[1765984678036,0.0110749,90323.0,90316.0,0.0001661]
[1765984678234,0.0110748,90324.0,90316.0,0.0001661]
[1765984678539,0.28713225,90326.0,90321.0,0.011075]
[1765984678845,0.0110751,90321.0,90316.0,0.0110756]
[1765984679046,0.3608,90322.0,90312.0,0.0110761]
[1765984679342,0.3608,90322.0,90314.0,0.011076]
[1765984679540,0.0110757,90316.0,90294.0,0.3608]
[1765984679734,0.3608,90302.0,90294.0,0.3608]
[1765984680047,0.011077,90306.0,90303.0,0.0110772]
[1765984680343,0.0110798,90283.0,90273.0,0.07514247]
[1765984680543,0.3608,90280.0,90267.0,0.07514247]
[1765984680751,0.3608,90280.0,90279.0,0.0110803]
[1765984681434,0.0001661,90287.0,90286.0,0.0110794]
[1765984682046,0.0001661,90287.0,90272.0,0.3608]
[1765984682047,0.0001661,90287.0,90282.0,0.0110798]
[1765984682243,0.0001661,90287.0,90269.0,0.00011047]
[1765984682441,0.3608,90274.0,90270.0,0.0110814]
[1765984682744,0.3608,90274.0,90269.0,0.00011047]
[1765984682745,0.0001661,90287.0,90286.0,0.0110794]
[1765984682934,0.35742,90306.0,90286.0,0.0110794]
[1765984682935,0.08732272,90313.0,90289.0,0.011079]
[1765984683134,0.0110766,90311.0,90309.0,0.0110766]
[1765984683336,0.08732272,90313.0,90310.0,0.0110764]
[1765984683741,0.3608,90317.0,90316.0,0.0110757]
[1765984684051,0.08739289,90323.0,90321.0,0.011075]
[1765984684341,0.0110735,90334.0,90330.0,0.011074]
[1765984684542,0.0110731,90338.0,90321.0,0.3608]
[1765984684844,0.3608,90345.0,90318.0,0.3608]
[1765984684845,0.27605765,90331.0,90318.0,0.3608]
[1765984685140,0.3608,90327.0,90312.0,0.0110762]
[1765984685347,0.0110748,90324.0,90310.0,0.63685765]
[1765984685543,0.0001661,90329.0,90325.0,0.0110745]
[1765984685948,0.0001661,90329.0,90320.0,0.0110752]
[1765984686148,0.0001661,90329.0,90313.0,0.3608]
[1765984686345,0.0001661,90329.0,90328.0,0.0110743]
[1765984686644,0.0110729,90339.0,90327.0,0.0110743]
[1765984686844,0.27605765,90340.0,90327.0,0.0110743]
[1765984687033,0.001,90329.0,90319.0,0.27605765]
[1765984687239,0.001,90329.0,90328.0,0.0110743]
[1765984687750,0.0001661,90338.0,90333.0,0.0110735]
[1765984687934,0.0110731,90337.0,90333.0,0.0110735]
[1765984688140,0.0110743,90328.0,90326.0,5e-07]
[1765984688449,0.3608,90336.0,90326.0,5e-07]
[1765984688649,0.0001661,90338.0,90335.0,0.0110734]
[1765984688949,0.3608,90336.0,90326.0,5e-07]
[1765984689137,0.3608,90327.0,90313.0,0.3608]
[1765984689541,0.28713175,90330.0,90329.0,0.0110741]
[1765984689738,0.3608,90336.0,90333.0,0.0110735]
[1765984690041,0.0021661,90338.0,90318.0,0.0110755]
[1765984690342,0.0110736,90334.0,90321.0,0.3608]
[1765984690546,0.0110741,90330.0,90328.0,0.0110741]
[1765984691049,0.0110746,90325.0,90324.0,0.0110747]
[1765984691254,0.011075,90323.0,90319.0,0.0001661]
[1765984691544,0.27605765,90330.0,90320.0,0.03285049]
[1765984691749,0.3608,90336.0,90321.0,0.03285049]